fUST/lending_fUST_20240831
["ID","MTS","AMOUNT","RATE_DAILY","PERIOD"]
[336722462,1725075041549,-501.33449966,0.00032876,31]
[336722463,1725075041558,-500.0,0.00032876,31]
[336722464,1725075041568,-501.63803629,0.00032876,31]
[336722465,1725075041578,-508.52232539,0.00032876,31]
[336722466,1725075041588,-501.42617529,0.00032876,31]
[336722467,1725075041597,-500.0,0.00032876,31]
[336722468,1725075041607,-157.181891,0.00032876,7]
[336722469,1725075041616,-594.47995812,0.00032876,31]
[336722470,1725075041626,-502.40744424,0.00032876,31]
[336722471,1725075041635,-479.24025431,0.00032876,31]
[336722472,1725075041645,-500.0,0.00032876,31]
[336722473,1725075041655,-508.32,0.00032876,31]
[336722474,1725075041665,-500.0,0.00032876,31]
[336722475,1725075041677,-500.0,0.00032876,31]
[336722476,1725075041687,-500.0,0.00032876,31]
[336722477,1725075041696,-508.5241578,0.00032876,31]
[336722478,1725075041706,-500.0,0.00032876,31]
[336722479,1725075041716,-500.0,0.00032876,31]
[336722481,1725075041725,-500.0,0.00032876,31]
[336722483,1725075041734,-500.0,0.00032876,31]
[336722484,1725075041744,-500.58290083,0.00032876,10]
[336722485,1725075041754,-500.0,0.00032876,31]
[336722486,1725075041763,-500.0,0.00032876,31]
[336722488,1725075041773,-500.0,0.00032876,31]
[336722489,1725075041782,-500.0,0.00032876,31]
[336722490,1725075041792,-173.192024,0.00032876,7]
[336722491,1725075041802,-193.832658,0.00032876,7]
[336722492,1725075041811,-712.9,0.00032876,31]
[336722493,1725075041821,-500.0,0.00032876,31]
[336722494,1725075041830,-151.0,0.00032876,7]
[336722495,1725075041840,-151.0,0.00032876,7]
[336722496,1725075041849,-504.03403826,0.00032876,31]
[336722497,1725075041859,-500.0,0.00032876,31]
[336722498,1725075041868,-500.0,0.00032876,31]
[336722499,1725075041878,-500.0,0.00032876,31]
[336722500,1725075041887,-500.0,0.00032876,31]
[336722501,1725075041897,-500.0,0.00032876,31]
[336722502,1725075041907,-500.0,0.00032876,31]
[336722503,1725075041917,-500.0,0.00032876,31]
[336722504,1725075041929,-500.0,0.00032876,31]
[336722505,1725075041938,-500.0,0.00032876,31]
[336722506,1725075041947,-500.0,0.00032876,31]
[336722507,1725075041957,-500.0,0.00032876,31]
[336722508,1725075041967,-569.3489529,0.00032876,31]
[336722509,1725075041976,-500.0,0.00032876,31]
[336722510,1725075041986,-500.0,0.00032876,31]
[336722511,1725075041995,-615.4591913,0.00032876,31]
[336722512,1725075042114,-501.98144837,0.00032876,31]
[336722513,1725075042125,-502.98172692,0.00032876,31]
[336722514,1725075042134,-167.806455,0.00032876,7]
[336722515,1725075042143,-167.806455,0.00032876,7]
[336722516,1725075042153,-500.0,0.00032876,31]
[336722517,1725075042165,-500.0,0.00032876,31]
[336722518,1725075042176,-752.94,0.00032876,31]
[336722519,1725075042187,-500.0,0.00032876,31]
[336722520,1725075042197,-500.0,0.00032876,31]
[336722521,1725075042208,-500.0,0.00032876,31]
[336722522,1725075042218,-500.0,0.00032876,31]
[336722523,1725075042227,-500.0,0.00032876,31]
[336722524,1725075042237,-500.0,0.00032876,31]
[336722525,1725075042246,-500.0,0.00032876,31]
[336722526,1725075042256,-500.0,0.00032876,31]
[336722527,1725075042265,-500.0,0.00032876,31]
[336722528,1725075042274,-500.0,0.00032876,31]
[336722529,1725075042284,-510.49216852,0.00032876,31]
[336722530,1725075042293,-672.56,0.00032876,31]
[336722531,1725075042302,-500.0,0.00032876,31]
[336722532,1725075042312,-151.0,0.00032876,7]
[336722533,1725075042321,-500.0,0.00032876,31]
[336722534,1725075042330,-151.0,0.00032876,7]
[336722535,1725075042339,-151.0,0.00032876,7]
[336722536,1725075042348,-151.0,0.00032876,7]
[336722537,1725075042358,-500.0,0.00032876,31]
[336722538,1725075042367,-500.0,0.00032876,31]
[336722539,1725075042377,-507.09070414,0.00032876,31]
[336722540,1725075042386,-151.0,0.00032876,7]
[336722541,1725075042395,-500.0,0.00032876,31]
[336722542,1725075042403,-1444.767515,0.00032876,7]
[336722543,1725075042413,-500.0,0.00032876,31]
[336722544,1725075042422,-427.60794066,0.00032876,31]
[336722545,1725075042431,-606.36,0.00032876,31]
[336722546,1725075042441,-500.0,0.00032876,31]
[336722547,1725075042450,-1444.767515,0.00032876,7]
[336722548,1725075042459,-500.0,0.00032876,31]
[336722549,1725075042469,-502.73692662,0.00032876,2]
[336722550,1725075042478,-500.0,0.00032876,31]
[336722551,1725075042489,-500.0,0.00032876,31]
[336722552,1725075042500,-726.94,0.00032876,31]
[336722553,1725075042509,-790.145096,0.00032876,7]
[336722554,1725075042519,-726.94,0.00032876,31]
[336722555,1725075042528,-638.44607,0.00032876,7]
[336722556,1725075042537,-726.94,0.00032876,31]
[336722557,1725075042547,-790.145096,0.00032876,7]
[336722558,1725075042557,-325.86393749,0.00032876,31]
[336722561,1725075043660,-401.07606251,0.00032876,31]
[336722562,1725075043669,-726.94,0.00032876,31]
[336722563,1725075043681,-500.0,0.00032876,31]
[336722564,1725075043690,-726.94,0.00032876,31]
[336722565,1725075043700,-405.04185888,0.00032876,31]
[336722570,1725075046484,-358.12,0.00032866,3]
[336722571,1725075046493,-94.95814112,0.00032876,31]
[336722572,1725075046503,-790.145096,0.00032876,7]
[336722573,1725075046512,-790.145096,0.00032876,7]
[336722574,1725075046522,-500.0,0.00032876,31]
[336722575,1725075046531,-500.0,0.00032876,31]
[336722576,1725075046543,-500.0,0.00032876,31]
[336722577,1725075046555,-502.48852211,0.00032876,31]
[336722578,1725075046564,-151.0,0.00032876,7]
[336722579,1725075046573,-151.0,0.00032876,7]
[336722580,1725075046583,-151.0,0.00032876,7]
[336722581,1725075046592,-500.0,0.00032876,31]
[336722582,1725075046601,-500.0,0.00032876,31]
[336722583,1725075046610,-500.0,0.00032876,31]
[336722584,1725075046619,-500.0,0.00032876,31]
[336722585,1725075046630,-151.0,0.00032876,7]
[336722586,1725075046639,-293.056776,0.00032876,7]
[336722587,1725075046649,-500.0,0.00032876,31]
[336722588,1725075046658,-500.0,0.00032876,31]
[336722589,1725075046667,-500.0,0.00032876,31]
[336722590,1725075046677,-887.025545,0.00032876,7]
[336722591,1725075046686,-500.0,0.00032876,31]
[336722592,1725075046695,-887.025545,0.00032876,7]
[336722593,1725075046704,-354.90164115,0.00032876,31]
[336722594,1725075046713,-500.0,0.00032876,31]
[336722595,1725075046722,-887.025545,0.00032876,7]
[336722596,1725075046732,-887.025545,0.00032876,7]
[336722597,1725075046741,-596.64761049,0.00032876,31]
[336722598,1725075046750,-500.0,0.00032876,31]
[336722599,1725075046759,-500.0,0.00032876,31]
[336722600,1725075046768,-500.0,0.00032876,30]
[336722601,1725075046777,-500.0,0.00032876,31]
[336722602,1725075046786,-500.0,0.00032876,31]
[336722603,1725075046795,-500.0,0.00032876,31]
[336722604,1725075046805,-513.9,0.00032876,31]
[336722605,1725075046814,-500.0,0.00032876,31]
[336722606,1725075046824,-500.0,0.00032876,31]
[336722607,1725075046834,-500.0,0.00032876,31]
[336722608,1725075046843,-500.0,0.00032876,31]
[336722609,1725075046852,-230.28055855,0.00032876,31]
[336722610,1725075046861,-502.45884453,0.00032876,31]
[336722611,1725075046871,-500.0,0.00032876,31]
[336722612,1725075046880,-505.13390757,0.00032876,31]
[336722613,1725075046890,-503.34199515,0.00032876,31]
[336722614,1725075046899,-500.0,0.00032876,31]
[336722615,1725075046909,-609.0,0.00032876,31]
[336722616,1725075046918,-500.0,0.00032876,31]
[336722617,1725075046929,-500.8563198,0.00032876,20]
[336722618,1725075046939,-152.647006,0.00032876,7]
[336722619,1725075046950,-500.0,0.00032876,31]
[336722620,1725075046960,-500.0,0.00032876,31]
[336722621,1725075046969,-151.0,0.00032876,7]
[336722622,1725075046978,-151.0,0.00032876,7]
[336722623,1725075046988,-500.0,0.00032876,31]
[336722624,1725075046997,-151.0,0.00032876,7]
[336722625,1725075047007,-151.0,0.00032876,7]
[336722626,1725075047017,-663.37,0.00032876,31]
[336722627,1725075047028,-500.0,0.00032876,31]
[336722628,1725075047039,-500.0,0.00032876,31]
[336722629,1725075047050,-500.0,0.00032876,31]
[336722630,1725075047060,-329.942361,0.00032876,7]
[336722631,1725075047070,-1743.53,0.00032876,31]
[336722632,1725075047079,-329.942361,0.00032876,7]
[336722633,1725075047088,-500.0,0.00032876,31]
[336722634,1725075047097,-502.09225124,0.00032876,31]
[336722635,1725075047106,-500.0,0.00032876,31]
[336722636,1725075047116,-500.0,0.00032876,31]
[336722637,1725075047125,-329.942361,0.00032876,7]
[336722638,1725075047134,-500.0,0.00032876,31]
[336722639,1725075047143,-329.942361,0.00032876,7]
[336722640,1725075047152,-500.0,0.00032876,31]
[336722641,1725075047164,-1006.59812649,0.00032876,31]
[336722642,1725075047175,-500.0,0.00032876,31]
[336722643,1725075047184,-500.0,0.00032876,31]
[336722644,1725075047193,-500.0,0.00032876,31]
[336722645,1725075047202,-500.0,0.00032876,31]
[336722646,1725075047215,-506.417966,0.00032876,31]
[336722647,1725075047224,-833.13,0.00032876,31]
[336722648,1725075047234,-500.0,0.00032876,31]
[336722649,1725075047246,-503.32217607,0.00032876,31]
[336722650,1725075047255,-574.82774259,0.00032876,31]
[336722651,1725075047266,-3641.0,0.00032876,31]
[336722652,1725075047275,-500.0,0.00032876,31]
[336722653,1725075047284,-500.0,0.00032876,31]
[336722654,1725075047293,-500.0,0.00032876,31]
[336722655,1725075047302,-500.0,0.00032876,31]
[336722656,1725075047312,-500.0,0.00032876,31]
[336722657,1725075047321,-500.0,0.00032876,31]
[336722658,1725075047331,-506.34766287,0.00032876,31]
[336722659,1725075047341,-500.0,0.00032876,31]
[336722660,1725075047351,-1740.28,0.00032876,31]
[336722661,1725075047361,-500.0,0.00032876,31]
[336722662,1725075047370,-1798.15,0.00032876,31]
[336722663,1725075047380,-2566.11,0.00032876,31]
[336722664,1725075047389,-2566.11,0.00032876,31]
[336722665,1725075047400,-2566.11,0.00032876,31]
[336722666,1725075047410,-2566.11,0.00032876,31]
[336722667,1725075047421,-2566.11,0.00032876,31]
[336722668,1725075047433,-2566.11,0.00032876,31]
[336722669,1725075047443,-2566.11,0.00032876,31]
[336722670,1725075047454,-500.0,0.00032876,31]
[336722671,1725075047465,-503.97809155,0.00032876,31]
[336722672,1725075047477,-500.0,0.00032876,31]
[336722673,1725075047488,-953.92,0.00032876,31]
[336722674,1725075047498,-500.0,0.00032876,31]
[336722675,1725075047508,-500.0,0.00032876,31]
[336722676,1725075047520,-151.0,0.00032876,7]
[336722677,1725075047531,-151.0,0.00032876,7]
[336722678,1725075047541,-500.0,0.00032876,31]
[336722679,1725075047551,-500.0,0.00032876,31]
[336722680,1725075047561,-1876.47,0.00032876,31]
[336722681,1725075047571,-568.00880277,0.00032876,31]
[336722682,1725075047580,-500.0,0.00032876,31]
[336722683,1725075047589,-151.0,0.00032876,7]
[336722684,1725075047598,-151.0,0.00032876,7]
[336722685,1725075047607,-152.000297,0.00032876,7]
[336722686,1725075047617,-151.0,0.00032876,7]
[336722687,1725075047628,-151.0,0.00032876,7]
[336722688,1725075047639,-500.0,0.00032876,31]
[336722689,1725075047650,-151.0,0.00032876,7]
[336722690,1725075047660,-151.0,0.00032876,7]
[336722691,1725075047669,-500.0,0.00032876,31]
[336722692,1725075047678,-270.866214,0.00032876,7]
[336722693,1725075047688,-7284.17,0.00032876,8]
[336722694,1725075047698,-501.31158312,0.00032876,31]
[336722695,1725075047707,-634.78362199,0.00032876,31]
[336722696,1725075047718,-505.69430325,0.00032876,31]
[336722697,1725075047728,-500.0,0.00032876,31]
[336722698,1725075047738,-501.15206361,0.00032876,31]
[336722699,1725075047747,-500.0,0.00032876,31]
[336722700,1725075047757,-2966.96,0.00032876,31]
[336722701,1725075047767,-500.0,0.00032876,31]
[336722702,1725075047777,-711.71,0.00032876,31]
[336722703,1725075047787,-500.0,0.00032876,31]
[336722704,1725075047796,-746.63,0.00032876,21]
[336722705,1725075047806,-500.0,0.00032876,31]
[336722706,1725075047817,-500.0,0.00032876,31]
[336722707,1725075047827,-211.54528489,0.00032876,31]
[336722708,1725075047838,-500.0,0.00032876,31]
[336722709,1725075047849,-500.0,0.00032876,31]
[336722710,1725075047858,-500.0,0.00032876,31]
[336722711,1725075047868,-500.0,0.00032876,31]
[336722712,1725075047878,-1098.51,0.00032876,31]
[336722713,1725075047887,-500.0,0.00032876,31]
[336722714,1725075047897,-1266.77,0.00032876,31]
[336722715,1725075047907,-500.0,0.00032876,31]
[336722716,1725075047916,-500.0,0.00032876,31]
[336722717,1725075047925,-500.0,0.00032876,31]
[336722718,1725075047934,-502.86941291,0.00032876,31]
[336722719,1725075047944,-1023.660754,0.00032876,7]
[336722720,1725075047953,-1023.660754,0.00032876,7]
[336722721,1725075047964,-500.0,0.00032876,31]
[336722722,1725075047974,-1023.660754,0.00032876,7]
[336722723,1725075047983,-1023.660754,0.00032876,7]
[336722724,1725075047993,-151.0,0.00032876,7]
[336722725,1725075048002,-500.0,0.00032876,31]
[336722726,1725075048011,-505.40726957,0.00032876,31]
[336722727,1725075048020,-151.0,0.00032876,7]
[336722728,1725075048135,-500.0,0.00032876,31]
[336722729,1725075048146,-1691.31,0.00032876,31]
[336722730,1725075048155,-151.0,0.00032876,7]
[336722731,1725075048168,-151.0,0.00032876,7]
[336722732,1725075048177,-1969.65,0.00032876,31]
[336722733,1725075048187,-151.0,0.00032876,7]
[336722734,1725075048196,-151.0,0.00032876,7]
[336722735,1725075048206,-500.0,0.00032876,31]
[336722736,1725075048216,-296.755004,0.00032876,7]
[336722737,1725075048226,-151.0,0.00032876,7]
[336722738,1725075048235,-151.0,0.00032876,7]
[336722739,1725075048245,-500.0,0.00032876,31]
[336722740,1725075048253,-234.488821,0.00032876,7]
[336722741,1725075048263,-234.488821,0.00032876,7]
[336722742,1725075048272,-500.0,0.00032876,31]
[336722743,1725075048281,-234.488821,0.00032876,7]
[336722744,1725075048290,-234.488821,0.00032876,7]
[336722745,1725075048300,-503.68816314,0.00032876,31]
[336722746,1725075048310,-151.0,0.00032876,7]
[336722747,1725075048319,-151.651291,0.00032876,7]
[336722748,1725075048328,-151.0,0.00032876,7]
[336722749,1725075048338,-151.0,0.00032876,7]
[336722750,1725075048348,-1041.76,0.00032876,31]
[336722751,1725075048357,-151.0,0.00032876,7]
[336722752,1725075048366,-151.0,0.00032876,7]
[336722753,1725075048375,-500.0,0.00032876,31]
[336722754,1725075048384,-500.0,0.00032876,7]
[336722755,1725075048393,-500.0,0.00032876,31]
[336722756,1725075048403,-500.0,0.00032876,31]
[336722757,1725075048413,-501.01019088,0.00032876,31]
[336722758,1725075048423,-500.0,0.00032876,31]
[336722759,1725075048434,-500.0,0.00032876,31]
[336722760,1725075048444,-500.0,0.00032876,31]
[336722761,1725075048454,-500.0,0.00032876,31]
[336722762,1725075048464,-500.0,0.00032876,31]
[336722763,1725075048473,-2321.79,0.00032876,31]
[336722764,1725075048482,-500.0,0.00032876,31]
[336722765,1725075048492,-500.0,0.00032876,31]
[336722766,1725075048502,-503.52140866,0.00032876,31]
[336722767,1725075048511,-502.55157876,0.00032876,31]
[336722768,1725075048521,-500.0,0.00032876,31]
[336722769,1725075048530,-504.06021174,0.00032876,31]
[336722770,1725075048540,-500.0,0.00032876,31]
[336722771,1725075048550,-501.72484161,0.00032876,31]
[336722772,1725075048560,-500.0,0.00032876,31]
[336722773,1725075048569,-500.0,0.00032876,31]
[336722774,1725075048578,-500.0,0.00032876,31]
[336722775,1725075048588,-3923.76,0.00032876,31]
[336722776,1725075048598,-500.0,0.00032876,31]
[336722777,1725075048608,-500.0,0.00032876,31]
[336722778,1725075048617,-500.0,0.00032876,31]
[336722779,1725075048627,-152.003303,0.00032876,7]
[336722780,1725075048636,-500.0,0.00032876,31]
[336722781,1725075048645,-500.0,0.00032876,31]
[336722782,1725075048655,-500.0,0.00032876,31]
[336722783,1725075048664,-502.07927524,0.00032876,31]
[336722784,1725075048673,-500.0,0.00032876,31]
[336722785,1725075048683,-502.1553002,0.00032876,31]
[336722786,1725075048692,-500.0,0.00032876,31]
[336722787,1725075048702,-506.69671661,0.00032876,31]
[336722788,1725075048711,-500.0,0.00032876,31]
[336722789,1725075048720,-500.0,0.00032876,31]
[336722790,1725075048729,-1830.34,0.00032876,31]
[336722791,1725075048738,-500.0,0.00032876,31]
[336722792,1725075048748,-500.0,0.00032876,31]
[336722793,1725075048757,-500.0,0.00032876,31]
[336722794,1725075048767,-500.0,0.00032876,31]
[336722795,1725075048776,-376.2778812,0.00032876,31]
[336722796,1725075048785,-457.70486867,0.00032876,31]
[336722797,1725075048794,-500.0,0.00032876,31]
[336722798,1725075048803,-500.0,0.00032876,31]
[336722799,1725075048813,-500.0,0.00032876,31]
[336722800,1725075048822,-500.0,0.00032876,31]
[336722801,1725075048831,-500.0,0.00032876,31]
[336722802,1725075048841,-1181.98,0.00032876,31]
[336722803,1725075048850,-790.39,0.00032876,31]
[336722804,1725075048860,-501.32555037,0.00032876,31]
[336722805,1725075048869,-151.0,0.00032877,14]
[336722806,1725075048878,-500.82586674,0.00032898,2]
[336722807,1725075048887,-303.0,0.000329,2]
[336722808,1725075048897,-150.0,0.0003292,2]
[336722809,1725075048906,-152.673116,0.00032942,14]
[336722810,1725075048916,-151.0,0.00032942,14]
[336722811,1725075048925,-726.94,0.00032942,31]
[336722812,1725075048940,-11984.95152976,0.00032943,5]
[336722813,1725075048949,-151.580029,0.00032943,14]
[336722814,1725075048958,-151.0,0.00032943,14]
[336722815,1725075048967,-440.109188,0.00032943,14]
[336722816,1725075048977,-440.109188,0.00032943,14]
[336722817,1725075048987,-151.0,0.00032943,14]
[336722818,1725075048996,-151.0,0.00032943,14]
[336722819,1725075049006,-153.887519,0.00032943,14]
[336722820,1725075049015,-265.127285,0.00032943,14]
[336722821,1725075049025,-1444.767515,0.00032943,14]
[336722822,1725075049034,-1444.767515,0.00032943,14]
[336722823,1725075049044,-2566.11,0.00032952,31]
[336722824,1725075049054,-151.0,0.00032952,14]
[336722825,1725075049063,-151.0,0.00032952,14]
[336722826,1725075049072,-151.0,0.00032952,14]
[336722827,1725075049082,-234.488821,0.00032952,14]
[336722828,1725075049091,-234.488821,0.00032952,14]
[336722829,1725075049100,-151.0,0.00032953,14]
[336722830,1725075049111,-151.0,0.00032953,14]
[336722831,1725075049120,-151.0,0.00032953,14]
[336722832,1725075049129,-173.192024,0.00032953,14]
[336722833,1725075049138,-167.806455,0.00032953,14]
[336722834,1725075049147,-167.806455,0.00032953,14]
[336722835,1725075049157,-790.145096,0.00032953,14]
[336722836,1725075049170,-151.0,0.00032953,14]
[336722837,1725075049181,-887.025545,0.00032953,14]
[336722838,1725075049190,-887.025545,0.00032953,14]
[336722839,1725075049199,-151.0,0.00032953,14]
[336722840,1725075049209,-151.0,0.00032953,14]
[336722841,1725075049219,-329.942361,0.00032953,14]
[336722842,1725075049227,-329.942361,0.00032953,14]
[336722843,1725075049236,-151.0,0.00032953,14]
[336722844,1725075049248,-151.0,0.00032953,14]
[336722845,1725075049258,-151.0,0.00032953,14]
[336722846,1725075049267,-151.0,0.00032953,14]
[336722847,1725075049277,-1023.660754,0.00032953,14]
[336722848,1725075049286,-1023.660754,0.00032953,14]
[336722849,1725075049296,-151.0,0.00032953,14]
[336722850,1725075049305,-151.0,0.00032953,14]
[336722851,1725075049315,-151.0,0.00032953,14]
[336722852,1725075049325,-500.82586674,0.00032959,2]
[336722853,1725075049334,-500.82586674,0.0003302,2]
[336722854,1725075049344,-500.0,0.00033029,31]
[336722855,1725075049354,-500.0,0.00033029,31]
[336722856,1725075049363,-3042.56645995,0.00033032,4]
[336722857,1725075049424,-11.8944446,0.00033032,4]
[336722865,1725075535367,165.77513,0.00014247,2]
[336722867,1725075720698,2741.92,0.00023,60]
[336722871,1725075930284,-165.77513,0.00021467,2]
[336722872,1725075930307,-165.77513,0.00028687,2]
[336722873,1725075930330,-300.0,0.000287,2]
[336722874,1725075930352,-300.0,0.000287,2]
[336722875,1725075930374,-280.7723866,0.00028701,2]
[336722876,1725076040099,-300.0,0.000287,2]
[336722877,1725076040121,-300.0,0.000287,2]
[336722878,1725076040158,-2187.8854632,0.00028701,2]
[336722879,1725076041146,-4339.12471979,0.00028701,2]
[336722880,1725076042108,-549.45076731,0.00028701,2]
[336722881,1725076045108,-1190.8529878,0.00028701,2]
[336722882,1725076049867,174.355735,0.00014247,2]
[336722887,1725076146113,-300.0,0.000287,2]
[336722888,1725076146134,-300.0,0.000287,2]
[336722889,1725076146156,-3292.80549815,0.00028701,2]
[336722890,1725076149105,-11546.29713785,0.00028701,2]
[336722891,1725076152122,-1512.8110393,0.00028701,2]
[336722892,1725076152146,-160.138484,0.00028767,2]
[336722893,1725076152169,-191.689323,0.00028872,2]
[336722894,1725076152193,-250.0,0.00029132,2]
[336722895,1725076152216,-250.0,0.00029212,2]
[336722896,1725076152240,-250.0,0.00029292,2]
[336722897,1725076152265,-250.0,0.00029372,2]
[336722898,1725076152288,-250.0,0.00029452,2]
[336722899,1725076152312,-250.0,0.00029532,2]
[336722912,1725076232527,-250.0,0.00030178,2]
[336722913,1725076232539,-250.0,0.0003026,2]
[336722914,1725076232549,-250.0,0.00030343,2]
[336722915,1725076232559,-250.0,0.00030426,2]
[336722916,1725076232569,-250.0,0.00030509,2]
[336722917,1725076232578,-250.0,0.00030591,2]
[336722918,1725076232588,-87.38173877,0.00030674,2]
[336722934,1725076238774,-162.61826123,0.00030674,2]
[336722935,1725076238784,-250.0,0.00030757,2]
[336722936,1725076238793,-250.0,0.0003084,2]
[336722937,1725076238802,-250.0,0.00030922,2]
[336722938,1725076238811,-250.0,0.00031005,2]
[336722939,1725076238820,-250.0,0.00031088,2]
[336722940,1725076238829,-400.0,0.00031099,2]
[336722941,1725076238840,-400.0,0.00031099,2]
[336722942,1725076238851,-409.6000198,0.000311,7]
[336722943,1725076238863,-409.6000198,0.000311,7]
[336722944,1725076238872,-409.6000198,0.000311,7]
[336722945,1725076238888,-409.6000198,0.000311,14]
[336722946,1725076238897,-326.6131259,0.000311,14]
[336722947,1725076238907,-525.6006622,0.000311,7]
[336722948,1725076238917,-250.0,0.00031171,2]
[336722949,1725076238927,-250.0,0.00031254,2]
[336722950,1725076238936,-250.0,0.00031336,2]
[336722951,1725076238945,-250.0,0.00031419,2]
[336722952,1725076238955,-250.0,0.00031502,2]
[336722953,1725076238963,-250.0,0.00031585,2]
[336722954,1725076238973,-250.0,0.00031667,2]
[336722955,1725076238982,-250.0,0.0003175,2]
[336722956,1725076238991,-2532.85295088,0.00032766,2]
[336722957,1725076239000,-172.65810162,0.00032766,2]
[336722958,1725076239009,-24352.39855743,0.00032866,4]
[336722959,1725076239020,-19980.29961008,0.00032866,4]
[336722960,1725076239326,-33899.06526159,0.00032866,4]
[336722961,1725076239337,-397.73,0.00032866,3]
[336722962,1725076239348,-500.0,0.00032876,31]
[336722963,1725076239359,-500.0,0.00032876,31]
[336722964,1725076239371,-629.0512722,0.00032876,31]
[336722965,1725076239381,-166.43907505,0.00032876,31]
[336722966,1725076239400,-333.56092495,0.00032876,31]
[336722967,1725076239409,-500.0,0.00032876,31]
[336722968,1725076239420,-500.0,0.00032876,31]
[336722969,1725076239430,-501.69391729,0.00032876,31]
[336722970,1725076239443,-500.0,0.00032876,31]
[336722971,1725076239453,-315.76897276,0.00032876,31]
[336722975,1725076240653,-185.83635143,0.00032876,31]
[336722976,1725076240664,-1362.22,0.00032876,31]
[336722977,1725076240673,-502.57893136,0.00032876,31]
[336722978,1725076240684,-500.0,0.00032876,31]
[336722979,1725076240693,-500.0,0.00032876,31]
[336722980,1725076240703,-500.0,0.00032876,31]
[336722981,1725076240712,-500.0,0.00032876,31]
[336722982,1725076240724,-500.60292882,0.00032876,31]
[336722983,1725076240736,-500.0,0.00032876,31]
[336722984,1725076240748,-500.0,0.00032876,31]
[336722985,1725076240759,-501.76186772,0.00032876,31]
[336722986,1725076240769,-500.0,0.00032876,31]
[336722987,1725076240778,-502.40744424,0.00032876,31]
[336722988,1725076240788,-501.1453586,0.00032876,31]
[336722989,1725076240798,-500.0,0.00032876,31]
[336722990,1725076240808,-594.47995812,0.00032876,31]
[336722991,1725076240817,-500.0,0.00032876,31]
[336722992,1725076240827,-500.0,0.00032876,31]
[336722993,1725076240837,-500.0,0.00032876,31]
[336722994,1725076240846,-552.58567458,0.00032876,31]
[336722995,1725076240856,-500.0,0.00032876,31]
[336722996,1725076240865,-539.86198693,0.00032876,31]
[336722997,1725076240874,-500.0,0.00032876,31]
[336722998,1725076240883,-500.0,0.00032876,31]
[336722999,1725076240893,-500.0,0.00032876,31]
[336723000,1725076240902,-500.0,0.00032876,31]
[336723001,1725076240911,-500.0,0.00032876,31]
[336723002,1725076240920,-497.23521605,0.00032876,31]
[336723003,1725076240931,-501.30714064,0.00032876,31]
[336723004,1725076240942,-500.0,0.00032876,10]
[336723005,1725076240954,-500.0,0.00032876,31]
[336723006,1725076240964,-500.0,0.00032876,31]
[336723007,1725076240973,-502.14149491,0.00032876,31]
[336723008,1725076240983,-508.5241578,0.00032876,31]
[336723009,1725076240993,-500.0,0.00032876,31]
[336723010,1725076241002,-500.0,0.00032876,31]
[336723011,1725076241131,-540.82607167,0.00032876,31]
[336723012,1725076241141,-500.0,0.00032876,31]
[336723013,1725076241150,-517.60828531,0.00032876,31]
[336723014,1725076241159,-502.98172692,0.00032876,31]
[336723015,1725076241170,-500.0,0.00032876,31]